fUST/lending_fUST_20250625
["ID","MTS","AMOUNT","RATE_DAILY","PERIOD"]
[367495714,1750825833281,-39.37445967,0.00016934,2]
[367495718,1750825837868,-460.0,0.00016932,2]
[367495719,1750825837877,-460.0,0.00016933,2]
[367495720,1750825837887,-460.0,0.00016933,2]
[367495721,1750825837897,-460.0,0.00016933,2]
[367495722,1750825837906,-420.62554033,0.00016934,2]
[367495723,1750825837915,-165.17548333,0.00016934,2]
[367495724,1750825837924,-460.0,0.00016934,2]
[367495725,1750825837933,-428.97843573,0.00016934,2]
[367495726,1750825837943,-460.0,0.00016934,2]
[367495727,1750825837954,-1504.63,0.00016934,2]
[367495728,1750825837964,-460.0,0.00016934,2]
[367495729,1750825837973,-460.0,0.00016934,2]
[367495730,1750825837982,-460.0,0.00016934,2]
[367495731,1750825837991,-460.0,0.00016934,2]
[367495732,1750825838001,-460.0,0.00016934,2]
[367495733,1750825838010,-1096.02,0.00016934,2]
[367495734,1750825838021,-460.0,0.00016934,2]
[367495735,1750825838031,-460.0,0.00016934,2]
[367495736,1750825838041,-460.0,0.00016934,2]
[367495737,1750825838053,-920.62,0.00016934,2]
[367495738,1750825838062,-460.0,0.00016934,2]
[367495739,1750825838071,-460.0,0.00016934,2]
[367495740,1750825838081,-545.27,0.00016934,2]
[367495741,1750825838091,-460.0,0.00016934,2]
[367495742,1750825838100,-460.0,0.00016934,2]
[367495743,1750825838109,-460.0,0.00016934,2]
[367495744,1750825838121,-460.0,0.00016934,2]
[367495745,1750825838131,-460.0,0.00016934,2]
[367495746,1750825838142,-460.0,0.00016934,2]
[367495747,1750825838155,-460.0,0.00016934,2]
[367495748,1750825838166,-460.0,0.00016934,2]
[367495749,1750825838175,-460.0,0.00016934,2]
[367495750,1750825838184,-460.83668196,0.00016934,2]
[367495751,1750825838196,-500.0,0.00016934,2]
[367495752,1750825838205,-500.0,0.00016934,2]
[367495753,1750825838214,-460.0,0.00016935,2]
[367495754,1750825838224,-460.0,0.00016935,2]
[367495755,1750825838234,-460.0,0.00016935,2]
[367495756,1750825838243,-176.52773487,0.00016935,2]
[367495757,1750825838253,-460.0,0.00016935,2]
[367495758,1750825838262,-500.0,0.00016935,2]
[367495759,1750825838271,-500.0,0.00016935,2]
[367495760,1750825838281,-460.0,0.00016935,2]
[367495761,1750825838291,-460.0,0.00016935,2]
[367495762,1750825838300,-359.59241299,0.00016935,2]
[367495763,1750825838309,-460.0,0.00016935,2]
[367495764,1750825838319,-460.0,0.00016935,2]
[367495765,1750825838328,-460.0,0.00016935,2]
[367495766,1750825838338,-460.0,0.00016935,2]
[367495767,1750825838347,-460.0,0.00016935,2]
[367495768,1750825838357,-460.0,0.00016935,2]
[367495769,1750825838367,-573.00009194,0.00016935,2]
[367495770,1750825838376,-247.85304603,0.00016935,2]
[367495771,1750825838386,-203.11558328,0.00016935,2]
[367495772,1750825838395,-460.0,0.00016935,2]
[367495773,1750825838405,-460.0,0.00016935,2]
[367495774,1750825838414,-460.0,0.00016935,2]
[367495775,1750825838424,-458.11561876,0.00016935,2]
[367495776,1750825838434,-460.0,0.00016935,2]
[367495777,1750825838444,-500.0,0.00016935,2]
[367495778,1750825838454,-500.0,0.00016935,2]
[367495779,1750825838464,-460.0,0.00016936,2]
[367495780,1750825838474,-460.0,0.00016936,2]
[367495781,1750825838484,-460.0,0.00016936,2]
[367495782,1750825838493,-460.0,0.00016936,2]
[367495783,1750825838503,-300.08081212,0.00016936,2]
[367495784,1750825838512,-460.0,0.00016936,2]
[367495785,1750825838521,-593.64,0.00016936,2]
[367495786,1750825838531,-460.0,0.00016936,2]
[367495787,1750825838541,-350.32305674,0.00016936,2]
[367495788,1750825838552,-460.0,0.00016936,2]
[367495789,1750825838561,-460.0,0.00016936,2]
[367495790,1750825838570,-460.0,0.00016936,2]
[367495791,1750825838580,-608.68,0.00016936,2]
[367495792,1750825838590,-263.06,0.00016936,2]
[367495793,1750825838599,-460.0,0.00016936,2]
[367495794,1750825838609,-460.0,0.00016936,2]
[367495795,1750825838618,-460.0,0.00016936,2]
[367495796,1750825838629,-460.0,0.00016936,2]
[367495797,1750825838639,-155.01858298,0.00016936,2]
[367495798,1750825838649,-460.0,0.00016936,2]
[367495799,1750825838659,-460.0,0.00016936,2]
[367495800,1750825838669,-460.0,0.00016936,2]
[367495801,1750825838678,-460.0,0.00016936,2]
[367495802,1750825838688,-460.0,0.00016936,2]
[367495803,1750825838698,-460.0,0.00016936,2]
[367495804,1750825838707,-460.0,0.00016937,2]
[367495805,1750825838717,-460.0,0.00016937,2]
[367495806,1750825838726,-460.0,0.00016937,2]
[367495807,1750825838736,-460.0,0.00016937,2]
[367495808,1750825838746,-460.0,0.00016937,2]
[367495809,1750825838756,-500.0,0.00016937,2]
[367495810,1750825838765,-394.92,0.00016938,2]
[367495811,1750825838775,-460.0,0.00016938,2]
[367495812,1750825838785,-460.0,0.00016938,2]
[367495813,1750825838794,-482.19406273,0.00016938,2]
[367495814,1750825838803,-460.0,0.00016938,2]
[367495815,1750825838813,-500.0,0.00016939,2]
[367495816,1750825838823,-1664.85186824,0.0001711,2]
[367495817,1750825838832,-502.12,0.000172,3]
[367495818,1750825838842,-334.73,0.00017202,3]
[367495819,1750825838851,-167.36,0.00017202,3]
[367495820,1750825838860,-460.0,0.00017205,2]
[367495821,1750825838869,-460.0,0.00017206,2]
[367495822,1750825838878,-1159.64,0.00017206,2]
[367495823,1750825838888,-460.0,0.00017206,2]
[367495824,1750825838897,-460.0,0.00017206,2]
[367495825,1750825838906,-460.0,0.00017206,2]
[367495826,1750825838916,-460.0,0.00017206,2]
[367495827,1750825838925,-460.0,0.00017206,2]
[367495828,1750825838934,-460.0,0.00017206,2]
[367495829,1750825838945,-460.0,0.00017206,2]
[367495830,1750825838954,-460.0,0.00017206,2]
[367495831,1750825838964,-479.69,0.00017206,2]
[367495832,1750825838973,-460.0,0.00017206,2]
[367495833,1750825838983,-460.0,0.00017206,2]
[367495834,1750825838992,-2615.86,0.00017206,2]
[367495835,1750825839002,-460.0,0.00017206,2]
[367495836,1750825839011,-460.0,0.00017206,2]
[367495837,1750825839021,-1232.47,0.00017206,2]
[367495838,1750825839030,-460.0,0.00017206,2]
[367495839,1750825839039,-460.0,0.00017206,2]
[367495840,1750825839048,-460.0,0.00017206,2]
[367495841,1750825839057,-460.0,0.00017206,2]
[367495842,1750825839067,-460.0,0.00017207,2]
[367495843,1750825839075,-460.0,0.00017207,2]
[367495844,1750825839085,-1329.71,0.00017207,2]
[367495845,1750825839094,-460.0,0.00017207,2]
[367495846,1750825839104,-3852.95,0.00017207,2]
[367495847,1750825839114,-1767.65,0.00017207,2]
[367495848,1750825839123,-1315.27,0.00017207,2]
[367495849,1750825839132,-460.0,0.00017207,2]
[367495850,1750825839143,-460.0,0.00017207,2]
[367495851,1750825839154,-460.0,0.00017207,2]
[367495852,1750825839163,-1165.12,0.00017207,2]
[367495853,1750825839172,-995.68,0.00017207,2]
[367495854,1750825839181,-311.38708836,0.00017207,2]
[367495855,1750825839191,-1406.54,0.00017207,2]
[367495856,1750825839200,-460.0,0.00017207,2]
[367495857,1750825839209,-509.66995382,0.00017207,2]
[367495858,1750825839218,-460.0,0.00017207,2]
[367495859,1750825839228,-460.0,0.00017208,2]
[367495860,1750825839237,-460.0,0.00017208,2]
[367495861,1750825839246,-460.0,0.00017208,2]
[367495862,1750825839256,-500.0,0.00017208,2]
[367495863,1750825839265,-460.0,0.00017208,2]
[367495864,1750825839275,-385.32489469,0.00017208,2]
[367495865,1750825839284,-460.0,0.00017208,2]
[367495866,1750825839293,-460.0,0.00017208,2]
[367495867,1750825839302,-460.0,0.00017208,2]
[367495868,1750825839312,-460.0,0.00017208,2]
[367495869,1750825839321,-460.0,0.00017208,2]
[367495870,1750825839330,-189.07664175,0.00017208,2]
[367495871,1750825839340,-370.0,0.00017208,2]
[367495873,1750825839349,-460.0,0.00017208,2]
[367495875,1750825839358,-460.0,0.00017208,2]
[367495876,1750825839367,-460.0,0.00017208,2]
[367495877,1750825839376,-460.0,0.00017208,2]
[367495878,1750825839386,-460.0,0.00017208,2]
[367495879,1750825839395,-460.0,0.00017208,2]
[367495880,1750825839404,-500.51346123,0.00017208,2]
[367495882,1750825839413,-460.0,0.00017208,2]
[367495883,1750825839422,-460.0,0.00017208,2]
[367495884,1750825839431,-460.0,0.00017208,2]
[367495885,1750825839441,-238.19537941,0.00017208,2]
[367495886,1750825839451,-1338.05,0.00017208,2]
[367495887,1750825839460,-460.0,0.00017208,2]
[367495888,1750825839470,-460.0,0.00017208,2]
[367495889,1750825839479,-460.0,0.00017208,2]
[367495890,1750825839488,-460.0,0.00017208,2]
[367495891,1750825839498,-460.0,0.00017208,2]
[367495892,1750825839507,-460.0,0.00017208,2]
[367495893,1750825839517,-1003.47,0.00017208,2]
[367495894,1750825839527,-460.0,0.00017208,2]
[367495895,1750825839536,-460.0,0.00017208,2]
[367495896,1750825839545,-460.0,0.00017208,2]
[367495897,1750825839554,-460.0,0.00017208,2]
[367495898,1750825839564,-1504.63,0.00017208,2]
[367495899,1750825839572,-289.20573842,0.00017208,2]
[367495900,1750825839582,-460.0,0.00017208,2]
[367495901,1750825839591,-460.0,0.00017208,2]
[367495902,1750825839600,-460.0,0.00017208,2]
[367495903,1750825839609,-460.0,0.00017208,2]
[367495904,1750825839618,-1096.02,0.00017208,2]
[367495905,1750825839627,-460.0,0.00017208,2]
[367495906,1750825839637,-460.0,0.00017208,2]
[367495907,1750825839647,-359.57624203,0.00017208,2]
[367495908,1750825839656,-920.62,0.00017208,2]
[367495909,1750825839665,-411.73822082,0.00017208,2]
[367495910,1750825839674,-460.0,0.00017208,2]
[367495911,1750825839683,-545.27,0.00017208,2]
[367495912,1750825839692,-460.0,0.00017208,2]
[367495913,1750825839701,-460.0,0.00017208,2]
[367495914,1750825839710,-387.96813737,0.00017208,2]
[367495915,1750825839719,-460.0,0.00017208,2]
[367495916,1750825839728,-460.0,0.00017208,2]
[367495917,1750825839738,-460.0,0.00017208,2]
[367495918,1750825839747,-460.0,0.00017208,2]
[367495919,1750825839756,-460.0,0.00017209,2]
[367495920,1750825839765,-500.0,0.00017209,2]
[367495921,1750825839774,-440.05645959,0.00017209,2]
[367495922,1750825839784,-460.0,0.00017209,2]
[367495923,1750825839794,-582.57369683,0.00017209,2]
[367495924,1750825839803,-460.0,0.00017209,2]
[367495925,1750825839812,-460.0,0.00017209,2]
[367495926,1750825839821,-460.0,0.00017209,2]
[367495927,1750825839831,-302.48210599,0.00017209,2]
[367495928,1750825839840,-460.0,0.00017209,2]
[367495929,1750825839849,-460.0,0.00017209,2]
[367495930,1750825839859,-460.0,0.00017209,2]
[367495931,1750825839868,-460.0,0.00017209,2]
[367495932,1750825839878,-402.27685195,0.0001721,2]
[367495933,1750825839887,-265.99166779,0.0001721,2]
[367495934,1750825839896,-460.0,0.0001721,2]
[367495935,1750825839905,-593.64,0.0001721,2]
[367495936,1750825839914,-455.34,0.0001721,2]
[367495937,1750825839924,-460.0,0.0001721,2]
[367495938,1750825839934,-460.0,0.0001721,2]
[367495939,1750825839943,-486.66459454,0.0001721,2]
[367495940,1750825839953,-537.29330944,0.0001721,2]
[367495941,1750825839962,-519.6679819,0.00017211,2]
[367495942,1750825839972,-460.0,0.00017211,2]
[367495943,1750825839981,-460.0,0.00017211,2]
[367495944,1750825839990,-460.0,0.00017212,2]
[367495945,1750825840000,-460.0,0.00017212,2]
[367495946,1750825840009,-460.0,0.00017212,2]
[367495947,1750825840019,-159.1692736,0.000174,2]
[367495948,1750825840028,-2431.63387871,0.00017412,2]
[367495949,1750825840037,-669.46,0.0001747,3]
[367495950,1750825840047,-460.0,0.00017479,2]
[367495951,1750825840056,-460.0,0.0001748,2]
[367495952,1750825840065,-1159.64,0.0001748,2]
[367495953,1750825840074,-460.0,0.0001748,2]
[367495954,1750825840083,-460.0,0.0001748,2]
[367495955,1750825840092,-460.0,0.0001748,2]
[367495956,1750825840102,-460.0,0.0001748,2]
[367495957,1750825840111,-460.0,0.0001748,2]
[367495958,1750825840121,-460.0,0.0001748,2]
[367495959,1750825840130,-460.0,0.0001748,2]
[367495960,1750825840140,-460.0,0.0001748,2]
[367495961,1750825840152,-479.69,0.0001748,2]
[367495962,1750825840161,-460.0,0.0001748,2]
[367495963,1750825840170,-460.0,0.0001748,2]
[367495964,1750825840180,-2615.86,0.0001748,2]
[367495965,1750825840189,-460.0,0.0001748,2]
[367495967,1750825840198,-460.0,0.0001748,2]
[367495968,1750825840207,-1232.47,0.0001748,2]
[367495969,1750825840216,-460.0,0.0001748,2]
[367495970,1750825840225,-460.0,0.0001748,2]
[367495971,1750825840235,-460.0,0.0001748,2]
[367495972,1750825840244,-460.0,0.00017481,2]
[367495973,1750825840253,-460.0,0.00017481,2]
[367495974,1750825840262,-1329.71,0.00017481,2]
[367495975,1750825840272,-460.0,0.00017481,2]
[367495976,1750825840281,-3852.95,0.00017481,2]
[367495977,1750825840290,-1767.65,0.00017481,2]
[367495978,1750825840299,-1315.27,0.00017481,2]
[367495979,1750825840309,-460.0,0.00017481,2]
[367495980,1750825840318,-460.0,0.00017481,2]
[367495981,1750825840327,-460.0,0.00017481,2]
[367495982,1750825840337,-1165.12,0.00017481,2]
[367495983,1750825840347,-995.68,0.00017481,2]
[367495984,1750825840356,-1406.54,0.00017481,2]
[367495985,1750825840365,-460.0,0.00017481,2]
[367495986,1750825840375,-460.0,0.00017481,2]
[367495987,1750825840384,-460.0,0.00017482,2]
[367495988,1750825840394,-460.0,0.00017482,2]
[367495989,1750825840403,-460.0,0.00017482,2]
[367495990,1750825840413,-460.0,0.00017482,2]
[367495991,1750825840422,-460.0,0.00017482,2]
[367495992,1750825840431,-460.0,0.00017482,2]
[367495993,1750825840441,-460.0,0.00017482,2]
[367495994,1750825840451,-405.2032867,0.00017482,2]
[367495995,1750825840460,-460.0,0.00017482,2]
[367495996,1750825840469,-460.0,0.00017482,2]
[367495997,1750825840478,-460.0,0.00017482,2]
[367495998,1750825840487,-460.0,0.00017482,2]
[367495999,1750825840497,-460.0,0.00017482,2]
[367496000,1750825840507,-460.0,0.00017482,2]
[367496001,1750825840517,-522.54441497,0.00017482,2]
[367496002,1750825840527,-1338.05,0.00017482,2]
[367496003,1750825840537,-460.0,0.00017482,2]
[367496004,1750825840547,-460.0,0.00017482,2]
[367496005,1750825840558,-460.0,0.00017482,2]
[367496006,1750825840567,-460.0,0.00017482,2]
[367496007,1750825840576,-460.0,0.00017482,2]
[367496008,1750825840585,-460.0,0.00017482,2]
[367496009,1750825840595,-1003.47,0.00017482,2]
[367496010,1750825840604,-460.0,0.00017482,2]
[367496011,1750825840613,-415.71409495,0.00017482,2]
[367496012,1750825840623,-460.0,0.00017482,2]
[367496013,1750825840632,-502.96,0.00017482,2]
[367496014,1750825840642,-1504.63,0.00017482,2]
[367496015,1750825840651,-460.0,0.00017482,2]
[367496016,1750825840661,-460.0,0.00017482,2]
[367496017,1750825840670,-460.0,0.00017482,2]
[367496018,1750825840679,-1096.02,0.00017482,2]
[367496019,1750825840689,-460.0,0.00017482,2]
[367496020,1750825840698,-460.0,0.00017482,2]
[367496022,1750825840707,-920.62,0.00017482,2]
[367496023,1750825840717,-460.0,0.00017482,2]
[367496024,1750825840726,-545.27,0.00017482,2]
[367496025,1750825840875,-460.0,0.00017482,2]
[367496026,1750825840885,-172.99016079,0.00017482,2]
[367496027,1750825840894,-460.0,0.00017482,2]
[367496028,1750825840904,-460.0,0.00017482,2]
[367496029,1750825840913,-460.0,0.00017482,2]
[367496030,1750825840922,-460.0,0.00017482,2]
[367496031,1750825840932,-460.0,0.00017483,2]
[367496032,1750825840941,-215.73370953,0.00017483,2]
[367496033,1750825840950,-460.0,0.00017483,2]
[367496034,1750825840960,-460.0,0.00017483,2]
[367496035,1750825840969,-460.0,0.00017483,2]
[367496036,1750825840978,-171.02275559,0.00017483,2]
[367496037,1750825840988,-460.0,0.00017483,2]
[367496038,1750825840997,-460.0,0.00017484,2]
[367496039,1750825841007,-593.64,0.00017484,2]
[367496040,1750825841016,-460.0,0.00017484,2]
[367496041,1750825841025,-460.0,0.00017484,2]
[367496042,1750825841034,-309.65,0.00017486,2]
[367496043,1750825841043,-460.0,0.00017486,2]
[367496044,1750825841053,-460.0,0.00017486,2]
[367496045,1750825841062,-181.97384884,0.00017753,2]
[367496046,1750825841071,-460.0,0.00017754,2]
[367496047,1750825841080,-1159.64,0.00017754,2]
[367496048,1750825841090,-460.0,0.00017754,2]
[367496049,1750825841099,-460.0,0.00017754,2]
[367496050,1750825841109,-460.0,0.00017754,2]
[367496051,1750825841118,-460.0,0.00017754,2]
[367496052,1750825841127,-460.0,0.00017754,2]
[367496053,1750825841137,-460.0,0.00017754,2]
[367496054,1750825841149,-460.0,0.00017754,2]
[367496055,1750825841159,-579.47,0.00017754,2]
[367496056,1750825841168,-479.69,0.00017754,2]
[367496057,1750825841177,-460.0,0.00017754,2]
[367496058,1750825841186,-460.0,0.00017754,2]
[367496059,1750825841195,-2615.86,0.00017754,2]
[367496060,1750825841205,-460.0,0.00017754,2]
[367496061,1750825841214,-460.0,0.00017754,2]
[367496062,1750825841223,-1232.47,0.00017754,2]
[367496063,1750825841232,-460.0,0.00017754,2]
[367496064,1750825841241,-339.44543232,0.00017754,2]
[367496065,1750825841251,-460.0,0.00017755,2]
[367496066,1750825841261,-1329.71,0.00017755,2]
[367496067,1750825841270,-460.0,0.00017755,2]
[367496068,1750825841279,-3852.95,0.00017755,2]
[367496069,1750825841288,-1767.65,0.00017755,2]
[367496070,1750825841298,-1315.27,0.00017755,2]
[367496071,1750825841307,-460.0,0.00017755,2]
[367496072,1750825841317,-460.0,0.00017755,2]
[367496073,1750825841327,-1165.12,0.00017755,2]
[367496074,1750825841336,-995.68,0.00017755,2]
[367496075,1750825841345,-1406.54,0.00017755,2]
[367496076,1750825841355,-481.74,0.00017755,2]
[367496077,1750825841364,-460.0,0.00017755,2]
[367496078,1750825841373,-460.0,0.00017756,2]
[367496079,1750825841383,-460.0,0.00017756,2]
[367496080,1750825841392,-460.0,0.00017756,2]
[367496081,1750825841401,-460.0,0.00017756,2]
[367496082,1750825841410,-460.0,0.00017756,2]
[367496083,1750825841420,-460.0,0.00017756,2]
[367496084,1750825841429,-460.0,0.00017756,2]
[367496085,1750825841439,-460.0,0.00017756,2]
[367496086,1750825841449,-460.0,0.00017756,2]
[367496087,1750825841458,-460.0,0.00017756,2]
[367496088,1750825841467,-460.0,0.00017756,2]
[367496089,1750825841476,-460.0,0.00017756,2]
[367496090,1750825841485,-1338.05,0.00017756,2]
[367496091,1750825841495,-460.0,0.00017756,2]
[367496092,1750825841504,-460.0,0.00017756,2]
[367496093,1750825841514,-305.28704303,0.00017756,2]
[367496094,1750825841523,-460.0,0.00017756,2]
[367496095,1750825841532,-460.0,0.00017756,2]
[367496096,1750825841542,-322.09710814,0.00017756,2]
[367496097,1750825841551,-1003.47,0.00017756,2]
[367496098,1750825841562,-460.0,0.00017756,2]
[367496099,1750825841571,-460.0,0.00017756,2]
[367496100,1750825841580,-1504.63,0.00017756,2]
[367496101,1750825841590,-460.0,0.00017756,2]
[367496102,1750825841599,-460.0,0.00017756,2]
[367496103,1750825841617,-371.52023609,0.00017756,2]
[367496104,1750825841627,-1096.02,0.00017756,2]
[367496105,1750825841637,-460.0,0.00017756,2]
[367496106,1750825841647,-460.0,0.00017756,2]
[367496107,1750825841656,-920.62,0.00017756,2]
[367496108,1750825841665,-460.0,0.00017756,2]
[367496109,1750825841674,-545.27,0.00017756,2]
[367496110,1750825841683,-460.0,0.00017756,2]
[367496111,1750825841692,-460.0,0.00017756,2]
[367496112,1750825841701,-460.0,0.00017756,2]
[367496113,1750825841711,-460.0,0.00017756,2]
[367496114,1750825841721,-461.0,0.00017756,2]
[367496115,1750825841730,-460.0,0.00017757,2]
[367496116,1750825841739,-245.18466007,0.00017757,2]
[367496117,1750825841749,-460.0,0.00017757,2]
[367496118,1750825841763,-460.0,0.00017757,2]
[367496119,1750825841773,-460.0,0.00017757,2]
[367496120,1750825841784,-187.0870523,0.00017758,2]
[367496121,1750825841793,-593.64,0.00017758,2]
[367496122,1750825841802,-460.0,0.00017758,2]
[367496123,1750825841811,-460.0,0.00017758,2]
[367496124,1750825841820,-460.0,0.0001776,2]
[367496125,1750825841830,-383.54,0.0001776,2]
[367496126,1750825841842,-365.4116442,0.00017918,2]
[367496127,1750825841851,-1664.85186823,0.00017931,2]
[367496128,1750825841862,-230.0,0.00017944,2]
[367496129,1750825841871,-700.0,0.0001798,2]
[367496130,1750825841881,-256.67,0.00018,2]
[367496131,1750825841890,-511.55355153,0.00018004,2]
[367496132,1750825841899,-460.0,0.00018028,2]
[367496133,1750825841908,-1159.64,0.00018028,2]
[367496134,1750825841917,-460.0,0.00018028,2]
[367496135,1750825841926,-460.0,0.00018028,2]
[367496136,1750825841935,-460.0,0.00018028,2]
[367496137,1750825841945,-460.0,0.00018028,2]
[367496138,1750825841954,-460.0,0.00018028,2]
[367496139,1750825841963,-460.0,0.00018028,2]
[367496140,1750825841972,-460.0,0.00018028,2]
[367496141,1750825841981,-479.69,0.00018028,2]
[367496142,1750825841990,-460.0,0.00018028,2]
[367496143,1750825841999,-460.0,0.00018028,2]
[367496144,1750825842008,-2615.86,0.00018028,2]
[367496145,1750825842018,-460.0,0.00018028,2]
[367496146,1750825842027,-1232.47,0.00018028,2]
[367496147,1750825842036,-460.0,0.00018028,2]
[367496148,1750825842045,-460.0,0.00018028,2]
[367496149,1750825842054,-460.0,0.00018029,2]
[367496150,1750825842063,-1329.71,0.00018029,2]
[367496151,1750825842073,-460.0,0.00018029,2]
[367496152,1750825842082,-3852.95,0.00018029,2]
[367496153,1750825842091,-1767.65,0.00018029,2]
[367496154,1750825842101,-1315.27,0.00018029,2]
[367496155,1750825842111,-460.0,0.00018029,2]
[367496156,1750825842120,-460.0,0.00018029,2]
[367496157,1750825842129,-1165.12,0.00018029,2]
[367496158,1750825842138,-995.68,0.00018029,2]
[367496159,1750825842152,-1406.54,0.00018029,2]
[367496160,1750825842161,-460.0,0.00018029,2]
[367496161,1750825842170,-460.0,0.0001803,2]
[367496162,1750825842180,-286.84428964,0.0001803,2]
[367496163,1750825842190,-460.0,0.0001803,2]
[367496164,1750825842199,-209.63860816,0.0001803,2]
[367496165,1750825842208,-460.0,0.0001803,2]
[367496166,1750825842219,-460.0,0.0001803,2]
[367496167,1750825842228,-460.0,0.0001803,2]
[367496169,1750825842237,-460.0,0.0001803,2]
[367496171,1750825842246,-198.2,0.0001803,2]
[367496172,1750825842255,-460.0,0.0001803,2]
[367496173,1750825842264,-460.0,0.0001803,2]
[367496174,1750825842274,-460.0,0.0001803,2]
[367496175,1750825842283,-1338.05,0.0001803,2]
[367496176,1750825842293,-460.0,0.0001803,2]
[367496177,1750825842302,-460.0,0.0001803,2]
[367496178,1750825842311,-182.50267997,0.0001803,2]
[367496180,1750825842321,-460.0,0.0001803,2]
[367496181,1750825842330,-1003.47,0.0001803,2]
[367496182,1750825842340,-460.0,0.0001803,2]
[367496183,1750825842349,-460.0,0.0001803,2]
[367496185,1750825842358,-1504.63,0.0001803,2]
[367496186,1750825842368,-460.0,0.0001803,2]
[367496187,1750825842377,-460.0,0.0001803,2]
[367496188,1750825842387,-1096.02,0.0001803,2]
[367496189,1750825842396,-460.0,0.0001803,2]
[367496190,1750825842405,-460.0,0.0001803,2]
[367496191,1750825842414,-920.62,0.0001803,2]
[367496192,1750825842423,-460.0,0.0001803,2]
[367496193,1750825842433,-545.27,0.0001803,2]
[367496194,1750825842442,-460.0,0.0001803,2]
[367496195,1750825842451,-386.94242314,0.0001803,2]
[367496196,1750825842461,-460.0,0.0001803,2]
[367496197,1750825842470,-460.0,0.0001803,2]
[367496198,1750825842480,-438.99,0.00018031,2]
[367496200,1750825842489,-460.0,0.00018031,2]
[367496202,1750825842499,-460.0,0.00018031,2]
[367496203,1750825842508,-460.0,0.00018031,2]
[367496204,1750825842517,-593.64,0.00018032,2]
[367496205,1750825842526,-460.0,0.00018032,2]
[367496206,1750825842536,-490.0,0.00018032,2]
[367496207,1750825842545,-460.0,0.00018034,2]
[367496208,1750825842555,-434.77503714,0.00018113,2]
[367496209,1750825842564,-519.76312072,0.00018116,2]
[367496210,1750825842573,-500.0,0.00018127,2]
[367496211,1750825842583,-4358.93802448,0.000182,2]
[367496212,1750825842592,-4358.93802438,0.000182,2]
[367496213,1750825842601,-500.0,0.00018238,2]
[367496214,1750825842610,-213.69531788,0.00018257,2]
[367496215,1750825842620,-160.0,0.00018257,2]
[367496216,1750825842629,-425.18553072,0.00018257,2]
[367496217,1750825842638,-12558.06783089,0.00018257,2]
[367496218,1750825842648,-230.22714675,0.00018257,2]
[367496219,1750825842657,-524.21181985,0.00018257,2]
[367496220,1750825842666,-846.80634355,0.00018257,2]
[367496221,1750825842675,-160.0,0.00018257,2]
[367496222,1750825842684,-836.86812089,0.00018257,2]
[367496223,1750825842694,-500.0,0.0001826,2]
[367496224,1750825842703,-500.0,0.0001826,2]
[367496225,1750825842712,-160.0,0.00018264,2]
[367496226,1750825842722,-160.0,0.00018264,2]
[367496227,1750825842731,-160.0,0.00018264,2]